[Event "Early-Titled-Tuesday-Blitz-January-23-2024"]
[Site "Chess.com"]
[Date "2024.01.23"]
[Round "11"]
[White "aghasiyevkamal"]
[Black "jcibarra"]
[Result "0-1"]
[WhiteElo "2636"]
[BlackElo "2842"]
[TimeControl "180+1"]
[EndTime "10:07:53 PST"]
[Termination "jcibarra won by resignation"]

1. e4 {[%clk 0:03:00.9]} 1... c5 {[%clk 0:02:59.5]} 2. Nf3 {[%clk 0:02:58.7]}
2... e6 {[%clk 0:02:59.5]} 3. g3 {[%clk 0:02:56.1]} 3... Nc6 {[%clk 0:02:59]} 4.
Bg2 {[%clk 0:02:55.7]} 4... Nf6 {[%clk 0:02:59.6]} 5. d3 {[%clk 0:02:54.6]} 5...
g6 {[%clk 0:02:56.1]} 6. O-O {[%clk 0:02:50.1]} 6... Bg7 {[%clk 0:02:55.2]} 7.
Re1 {[%clk 0:02:35]} 7... d5 {[%clk 0:02:46.7]} 8. e5 {[%clk 0:02:22.9]} 8...
Nd7 {[%clk 0:02:46.2]} 9. Bf4 {[%clk 0:02:23]} 9... h6 {[%clk 0:02:46.3]} 10. h4
{[%clk 0:02:22.8]} 10... g5 {[%clk 0:02:32.6]} 11. hxg5 {[%clk 0:02:22.1]} 11...
hxg5 {[%clk 0:02:33.5]} 12. Bxg5 {[%clk 0:02:22.2]} 12... Qc7 {[%clk 0:02:33.7]}
13. c4 {[%clk 0:02:14.9]} 13... d4 {[%clk 0:02:25.7]} 14. Qa4 {[%clk 0:01:58.2]}
14... Kf8 {[%clk 0:01:50.6]} 15. Bf4 {[%clk 0:01:37.1]} 15... Bh6 {[%clk
0:01:50.7]} 16. Bxh6+ {[%clk 0:01:31.5]} 16... Rxh6 {[%clk 0:01:50.6]} 17. Nbd2
{[%clk 0:01:18]} 17... Ncxe5 {[%clk 0:01:50.2]} 18. Nxe5 {[%clk 0:01:12.2]}
18... Nxe5 {[%clk 0:01:51.1]} 19. Qa3 {[%clk 0:01:12.5]} 19... Bd7 {[%clk
0:01:46]} 20. Ne4 {[%clk 0:01:01.8]} 20... b6 {[%clk 0:00:48]} 21. b4 {[%clk
0:00:19.6]} 21... cxb4 {[%clk 0:00:30.6]} 22. Qxb4+ {[%clk 0:00:19.4]} 22... Kg7
{[%clk 0:00:31.1]} 23. Qd2 {[%clk 0:00:18]} 23... f5 {[%clk 0:00:23.5]} 24. Qg5+
{[%clk 0:00:15.2]} 24... Rg6 {[%clk 0:00:21.5]} 25. Qe7+ {[%clk 0:00:15]} 25...
Nf7 {[%clk 0:00:20.8]} 26. Ng5 {[%clk 0:00:10.1]} 26... Rxg5 {[%clk 0:00:08.2]}
27. Bxa8 {[%clk 0:00:09.9]} 27... Rg6 {[%clk 0:00:09]} 28. Bg2 {[%clk
0:00:09.1]} 28... Rh6 {[%clk 0:00:08.9]} 29. Rac1 {[%clk 0:00:06.4]} 29... Qc8
{[%clk 0:00:04.7]} 30. c5 {[%clk 0:00:06.5]} 30... Bc6 {[%clk 0:00:04.2]} 31.
cxb6 {[%clk 0:00:06.2]} 31... Bxg2 {[%clk 0:00:04.9]} 32. Kxg2 {[%clk
0:00:05.6]} 32... Qh8 {[%clk 0:00:03.1]} 33. Rh1 {[%clk 0:00:04]} 33... axb6
{[%clk 0:00:02.6]} 34. Rxh6 {[%clk 0:00:03.9]} 34... Qxh6 {[%clk 0:00:03.3]} 35.
Rh1 {[%clk 0:00:03.5]} 35... Qg6 {[%clk 0:00:03.1]} 36. Qd6 {[%clk 0:00:03]}
36... Qf6 {[%clk 0:00:03]} 37. Qxb6 {[%clk 0:00:02]} 37... f4 {[%clk 0:00:03.6]}
38. Qc6 {[%clk 0:00:02]} 38... Ne5 {[%clk 0:00:03.9]} 39. Qf3 {[%clk 0:00:02.9]}
39... Nxf3 {[%clk 0:00:04]} 40. Kxf3 {[%clk 0:00:03.3]} 40... fxg3+ {[%clk
0:00:04.8]} 41. Kxg3 {[%clk 0:00:04]} 41... Qg6+ {[%clk 0:00:05.4]} 42. Kf3
{[%clk 0:00:04.1]} 42... Qxd3+ {[%clk 0:00:06.3]} 43. Kg2 {[%clk 0:00:04.5]}
43... Qe4+ {[%clk 0:00:06.9]} 0-1

[Event "Early-Titled-Tuesday-Blitz-January-23-2024"]
[Site "Chess.com"]
[Date "2024.01.23"]
[Round "11"]
[White "GaiozNigalidze"]
[Black "s4p0ud"]
[Result "0-1"]
[WhiteElo "2689"]
[BlackElo "2546"]
[TimeControl "180+1"]
[EndTime "10:07:54 PST"]
[Termination "s4p0ud won on time"]

1. e4 {[%clk 0:03:00.9]} 1... c5 {[%clk 0:02:59.9]} 2. Nf3 {[%clk 0:03:00.7]}
2... g6 {[%clk 0:02:59.8]} 3. c3 {[%clk 0:02:56.3]} 3... d5 {[%clk 0:02:55.8]}
4. e5 {[%clk 0:02:54.7]} 4... Nc6 {[%clk 0:02:34.6]} 5. d4 {[%clk 0:02:51.8]}
5... c4 {[%clk 0:02:35.5]} 6. b3 {[%clk 0:02:48.4]} 6... cxb3 {[%clk 0:02:34.2]}
7. axb3 {[%clk 0:02:48.6]} 7... Bg7 {[%clk 0:02:30.7]} 8. h3 {[%clk 0:02:45.4]}
8... Nh6 {[%clk 0:02:27.9]} 9. Bb5 {[%clk 0:02:41.4]} 9... O-O {[%clk
0:02:24.3]} 10. O-O {[%clk 0:02:37.8]} 10... Bd7 {[%clk 0:02:15.1]} 11. Bd3
{[%clk 0:02:36.6]} 11... f6 {[%clk 0:02:13.7]} 12. exf6 {[%clk 0:02:32]} 12...
exf6 {[%clk 0:02:13.9]} 13. c4 {[%clk 0:02:25]} 13... Nf5 {[%clk 0:02:11.3]} 14.
Bb2 {[%clk 0:02:15.6]} 14... dxc4 {[%clk 0:02:07.5]} 15. bxc4 {[%clk 0:02:11.6]}
15... Qb6 {[%clk 0:02:03.2]} 16. Ba3 {[%clk 0:02:02.7]} 16... Rfe8 {[%clk
0:01:53.7]} 17. c5 {[%clk 0:01:56.6]} 17... Qc7 {[%clk 0:01:53.2]} 18. d5 {[%clk
0:01:42.9]} 18... Ne5 {[%clk 0:01:52.3]} 19. Nxe5 {[%clk 0:01:42.9]} 19... Qxe5
{[%clk 0:01:49.6]} 20. Nd2 {[%clk 0:01:37.6]} 20... Nd4 {[%clk 0:01:49.6]} 21.
Nc4 {[%clk 0:01:21]} 21... Qg5 {[%clk 0:01:43.4]} 22. Bc1 {[%clk 0:00:59.9]}
22... Qxd5 {[%clk 0:01:36.2]} 23. Nd6 {[%clk 0:00:59.5]} 23... b5 {[%clk
0:01:19.4]} 24. Nxe8 {[%clk 0:00:52.1]} 24... Rxe8 {[%clk 0:01:19.9]} 25. Re1
{[%clk 0:00:26.2]} 25... Rxe1+ {[%clk 0:01:09.8]} 26. Qxe1 {[%clk 0:00:26.4]}
26... Bc6 {[%clk 0:01:10.4]} 27. Bf1 {[%clk 0:00:21.7]} 27... Nc2 {[%clk
0:01:00.5]} 28. Qc3 {[%clk 0:00:17.2]} 28... Nxa1 {[%clk 0:00:59.3]} 29. Qxa1
{[%clk 0:00:16.4]} 29... Qxc5 {[%clk 0:00:58.3]} 30. Be3 {[%clk 0:00:16.7]}
30... Qe7 {[%clk 0:00:55.5]} 31. Bxa7 {[%clk 0:00:15.5]} 31... f5 {[%clk
0:00:53.5]} 32. Qa2+ {[%clk 0:00:16]} 32... Kh8 {[%clk 0:00:52.8]} 33. Be3
{[%clk 0:00:15.9]} 33... Be5 {[%clk 0:00:49.6]} 34. Qa6 {[%clk 0:00:14.8]} 34...
Qd6 {[%clk 0:00:45]} 35. Qc8+ {[%clk 0:00:12.5]} 35... Kg7 {[%clk 0:00:44.5]}
36. h4 {[%clk 0:00:08.5]} 36... Qd7 {[%clk 0:00:41.8]} 37. Qa6 {[%clk
0:00:06.6]} 37... f4 {[%clk 0:00:35.8]} 38. Bc5 {[%clk 0:00:05.7]} 38... f3
{[%clk 0:00:34.1]} 39. g3 {[%clk 0:00:04.3]} 39... Qd5 {[%clk 0:00:29.9]} 40.
Qa7+ {[%clk 0:00:04.1]} 40... Qf7 {[%clk 0:00:27.4]} 41. Qb6 {[%clk 0:00:03.8]}
41... Qd5 {[%clk 0:00:18.4]} 42. Be3 {[%clk 0:00:03.9]} 42... Bxg3 {[%clk
0:00:09.8]} 43. Qa7+ {[%clk 0:00:02.2]} 43... Kg8 {[%clk 0:00:10]} 0-1

[Event "Early-Titled-Tuesday-Blitz-January-23-2024"]
[Site "Chess.com"]
[Date "2024.01.23"]
[Round "11"]
[White "FGHSMN"]
[Black "Boundless_Strike"]
[Result "0-1"]
[WhiteElo "2951"]
[BlackElo "2636"]
[TimeControl "180+1"]
[EndTime "10:08:00 PST"]
[Termination "Boundless_Strike won by checkmate"]

1. b3 {[%clk 0:03:00.9]} 1... e5 {[%clk 0:02:57.2]} 2. Bb2 {[%clk 0:03:00.6]}
2... d6 {[%clk 0:02:57.9]} 3. c4 {[%clk 0:03:01.1]} 3... f5 {[%clk 0:02:58.2]}
4. Nc3 {[%clk 0:03:02]} 4... Nf6 {[%clk 0:02:58.6]} 5. e3 {[%clk 0:03:02.6]}
5... Be7 {[%clk 0:02:59]} 6. d4 {[%clk 0:03:03]} 6... e4 {[%clk 0:02:58.4]} 7.
Nh3 {[%clk 0:03:02.1]} 7... O-O {[%clk 0:02:58.2]} 8. Nf4 {[%clk 0:03:02.6]}
8... c6 {[%clk 0:02:39]} 9. h4 {[%clk 0:03:01.7]} 9... Na6 {[%clk 0:02:39.2]}
10. d5 {[%clk 0:02:56.3]} 10... c5 {[%clk 0:02:32.9]} 11. h5 {[%clk 0:02:55.2]}
11... Nc7 {[%clk 0:02:30.8]} 12. h6 {[%clk 0:02:51]} 12... g5 {[%clk 0:02:30.7]}
13. Nh5 {[%clk 0:02:49.5]} 13... Nxh5 {[%clk 0:02:31]} 14. Qxh5 {[%clk 0:02:49]}
14... Bf6 {[%clk 0:02:30.6]} 15. O-O-O {[%clk 0:02:46]} 15... a6 {[%clk
0:02:19.7]} 16. g4 {[%clk 0:02:37.1]} 16... b5 {[%clk 0:02:09.7]} 17. gxf5
{[%clk 0:02:34.2]} 17... Bxf5 {[%clk 0:02:08.8]} 18. Bh3 {[%clk 0:02:26.9]}
18... Bg6 {[%clk 0:01:39.1]} 19. Qe2 {[%clk 0:02:23.8]} 19... bxc4 {[%clk
0:01:32.1]} 20. Qxc4 {[%clk 0:02:24.7]} 20... Rb8 {[%clk 0:01:32.5]} 21. Be6+
{[%clk 0:02:12.3]} 21... Kh8 {[%clk 0:01:30.5]} 22. Rd2 {[%clk 0:02:06.5]} 22...
Rb4 {[%clk 0:01:26.3]} 23. Qe2 {[%clk 0:02:06.8]} 23... Nb5 {[%clk 0:01:18.7]}
24. Nxb5 {[%clk 0:02:02.8]} 24... axb5 {[%clk 0:01:05.7]} 25. Ba3 {[%clk
0:02:02.6]} 25... Qa5 {[%clk 0:00:55.6]} 26. Bxb4 {[%clk 0:02:01.8]} 26... Qxb4
{[%clk 0:00:53.1]} 27. Rc2 {[%clk 0:01:57.3]} 27... Ra8 {[%clk 0:00:49.2]} 28.
Qe1 {[%clk 0:01:46.6]} 28... Qa3+ {[%clk 0:00:41.8]} 29. Kd1 {[%clk 0:01:46.1]}
29... c4 {[%clk 0:00:38]} 30. Ke2 {[%clk 0:01:40.3]} 30... cxb3 {[%clk
0:00:32.5]} 31. axb3 {[%clk 0:01:40.9]} 31... Qxb3 {[%clk 0:00:33.4]} 32. Qc1
{[%clk 0:01:41.5]} 32... Qd3+ {[%clk 0:00:15.6]} 33. Ke1 {[%clk 0:01:41.7]}
33... Be8 {[%clk 0:00:13.1]} 34. f4 {[%clk 0:00:47.4]} 34... Ra1 {[%clk
0:00:11]} 35. Kf2 {[%clk 0:00:47.4]} 35... Rxc1 {[%clk 0:00:11.1]} 36. Rhxc1
{[%clk 0:00:48.3]} 36... gxf4 {[%clk 0:00:10]} 37. exf4 {[%clk 0:00:35.3]} 37...
Bh4+ {[%clk 0:00:07.2]} 38. Kg2 {[%clk 0:00:35.4]} 38... Qf3+ {[%clk 0:00:07]}
39. Kg1 {[%clk 0:00:32.4]} 39... e3 {[%clk 0:00:04.8]} 40. Rc8 {[%clk
0:00:21.3]} 40... Bf2+ {[%clk 0:00:04.5]} 41. Kh2 {[%clk 0:00:21.9]} 41... Bg3+
{[%clk 0:00:02.9]} 42. Kh3 {[%clk 0:00:19.7]} 42... Bxf4+ {[%clk 0:00:03.1]} 43.
Kh4 {[%clk 0:00:19.8]} 43... Qg3# {[%clk 0:00:03.6]} 0-1

[Event "Early-Titled-Tuesday-Blitz-January-23-2024"]
[Site "Chess.com"]
[Date "2024.01.23"]
[Round "11"]
[White "Licancabur"]
[Black "Logman74"]
[Result "0-1"]
[WhiteElo "2454"]
[BlackElo "2482"]
[TimeControl "180+1"]
[EndTime "10:08:00 PST"]
[Termination "Logman74 won on time"]

1. d4 {[%clk 0:02:59.2]} 1... Nf6 {[%clk 0:02:57.6]} 2. Bg5 {[%clk 0:02:58.2]}
2... e6 {[%clk 0:02:56.6]} 3. e4 {[%clk 0:02:57.7]} 3... h6 {[%clk 0:02:57.1]}
4. Bxf6 {[%clk 0:02:57.4]} 4... Qxf6 {[%clk 0:02:57.8]} 5. c3 {[%clk 0:02:57.7]}
5... b6 {[%clk 0:02:57.3]} 6. Bd3 {[%clk 0:02:57.6]} 6... Bb7 {[%clk 0:02:57.6]}
7. Nd2 {[%clk 0:02:57.6]} 7... d6 {[%clk 0:02:57.6]} 8. Ne2 {[%clk 0:02:57.1]}
8... e5 {[%clk 0:02:58]} 9. O-O {[%clk 0:02:55.4]} 9... Qd8 {[%clk 0:02:55.1]}
10. f4 {[%clk 0:02:54.8]} 10... Nd7 {[%clk 0:02:53.7]} 11. Bc4 {[%clk
0:02:32.2]} 11... exd4 {[%clk 0:02:29.4]} 12. Nxd4 {[%clk 0:02:20.2]} 12... Nc5
{[%clk 0:02:20.8]} 13. Bb5+ {[%clk 0:02:01.5]} 13... Nd7 {[%clk 0:02:18.8]} 14.
Nc6 {[%clk 0:01:57.6]} 14... Qf6 {[%clk 0:02:05.7]} 15. e5 {[%clk 0:01:49.6]}
15... dxe5 {[%clk 0:02:04.8]} 16. Nxe5 {[%clk 0:01:13.8]} 16... Bc5+ {[%clk
0:01:53.7]} 17. Kh1 {[%clk 0:01:13.1]} 17... O-O-O {[%clk 0:01:51]} 18. Bxd7+
{[%clk 0:00:58.8]} 18... Rxd7 {[%clk 0:01:48.3]} 19. Nxd7 {[%clk 0:00:58.7]}
19... Qc6 {[%clk 0:01:42.6]} 20. Nf3 {[%clk 0:00:30.2]} 20... Rd8 {[%clk
0:01:34.8]} 21. Nde5 {[%clk 0:00:28.5]} 21... Rxd1 {[%clk 0:01:28.3]} 22. Nxc6
{[%clk 0:00:28]} 22... Rxf1+ {[%clk 0:01:27.5]} 23. Rxf1 {[%clk 0:00:27.4]}
23... Bxc6 {[%clk 0:01:28.2]} 24. Ne5 {[%clk 0:00:22]} 24... Bb5 {[%clk
0:01:14.4]} 25. c4 {[%clk 0:00:20.1]} 25... Be8 {[%clk 0:01:13.6]} 26. Re1
{[%clk 0:00:18.9]} 26... Kd8 {[%clk 0:01:04.2]} 27. a3 {[%clk 0:00:17.5]} 27...
f6 {[%clk 0:01:02.6]} 28. Nd3 {[%clk 0:00:17.4]} 28... Bd6 {[%clk 0:01:01.6]}
29. b4 {[%clk 0:00:16]} 29... Bg6 {[%clk 0:01:02]} 30. Rd1 {[%clk 0:00:15.8]}
30... Kc8 {[%clk 0:00:58.4]} 31. g3 {[%clk 0:00:14.9]} 31... Kb7 {[%clk
0:00:45.3]} 32. c5 {[%clk 0:00:13.6]} 32... bxc5 {[%clk 0:00:44.2]} 33. Nxc5+
{[%clk 0:00:13.5]} 33... Kc6 {[%clk 0:00:43.8]} 34. Nd3 {[%clk 0:00:10]} 34...
Kb5 {[%clk 0:00:41]} 35. Kg1 {[%clk 0:00:09.2]} 35... Ka4 {[%clk 0:00:40.5]} 36.
Kf2 {[%clk 0:00:06.1]} 36... Kxa3 {[%clk 0:00:39.7]} 37. b5 {[%clk 0:00:05]}
37... Ka4 {[%clk 0:00:32.8]} 38. Ke3 {[%clk 0:00:03.5]} 38... Kxb5 {[%clk
0:00:32.8]} 39. Rb1+ {[%clk 0:00:04.2]} 39... Kc6 {[%clk 0:00:29.6]} 40. Rc1+
{[%clk 0:00:04.9]} 40... Kb6 {[%clk 0:00:25.5]} 41. Rb1+ {[%clk 0:00:04.1]}
41... Kc6 {[%clk 0:00:24.2]} 42. Rc1+ {[%clk 0:00:04]} 42... Kd5 {[%clk
0:00:24.2]} 43. Ra1 {[%clk 0:00:03.2]} 43... c5 {[%clk 0:00:15]} 44. Rxa7 {[%clk
0:00:02.4]} 44... c4 {[%clk 0:00:15.6]} 0-1

[Event "Early-Titled-Tuesday-Blitz-January-23-2024"]
[Site "Chess.com"]
[Date "2024.01.23"]
[Round "11"]
[White "GMWSO"]
[Black "Sina_Movahed"]
[Result "1-0"]
[WhiteElo "3119"]
[BlackElo "2988"]
[TimeControl "180+1"]
[EndTime "10:08:03 PST"]
[Termination "GMWSO won on time"]

1. d4 {[%clk 0:03:00.9]} 1... Nf6 {[%clk 0:02:59.8]} 2. c4 {[%clk 0:02:59]} 2...
g6 {[%clk 0:02:55.1]} 3. Nc3 {[%clk 0:02:55.9]} 3... Bg7 {[%clk 0:02:55.7]} 4.
e4 {[%clk 0:02:55.7]} 4... d6 {[%clk 0:02:55.9]} 5. Nge2 {[%clk 0:02:56]} 5...
O-O {[%clk 0:02:56.5]} 6. Be3 {[%clk 0:02:54.6]} 6... Nc6 {[%clk 0:02:38.3]} 7.
f3 {[%clk 0:02:49.3]} 7... a6 {[%clk 0:02:36.9]} 8. Qd2 {[%clk 0:02:49.4]} 8...
Na5 {[%clk 0:02:36.7]} 9. Nc1 {[%clk 0:02:44.4]} 9... Nd7 {[%clk 0:02:36.8]} 10.
b4 {[%clk 0:02:36.6]} 10... Nc6 {[%clk 0:02:36.3]} 11. Rb1 {[%clk 0:02:24]}
11... e5 {[%clk 0:02:32.4]} 12. d5 {[%clk 0:02:23.9]} 12... Nd4 {[%clk
0:02:32.8]} 13. Nb3 {[%clk 0:02:24]} 13... Nxb3 {[%clk 0:02:30.2]} 14. axb3
{[%clk 0:02:22]} 14... f5 {[%clk 0:02:30.7]} 15. Be2 {[%clk 0:02:18.8]} 15...
Nf6 {[%clk 0:02:31.2]} 16. O-O {[%clk 0:02:03.9]} 16... f4 {[%clk 0:02:31.3]}
17. Bf2 {[%clk 0:02:04.4]} 17... g5 {[%clk 0:02:32]} 18. c5 {[%clk 0:01:55.8]}
18... g4 {[%clk 0:02:22.8]} 19. Bh4 {[%clk 0:01:55.5]} 19... Qe8 {[%clk
0:02:18.6]} 20. Bxf6 {[%clk 0:01:46.7]} 20... Bxf6 {[%clk 0:02:07.8]} 21. fxg4
{[%clk 0:01:47.6]} 21... Qg6 {[%clk 0:02:08.4]} 22. h3 {[%clk 0:01:39.6]} 22...
Be7 {[%clk 0:02:01.6]} 23. c6 {[%clk 0:01:36.6]} 23... Rb8 {[%clk 0:01:46.3]}
24. Ra1 {[%clk 0:01:26.2]} 24... Kg7 {[%clk 0:01:43.7]} 25. Bf3 {[%clk
0:01:10.9]} 25... bxc6 {[%clk 0:01:31.4]} 26. dxc6 {[%clk 0:01:11.8]} 26... Rxb4
{[%clk 0:01:31.2]} 27. Nd5 {[%clk 0:01:09.2]} 27... Rd4 {[%clk 0:01:30.9]} 28.
Qc3 {[%clk 0:00:50.4]} 28... Bd8 {[%clk 0:01:17]} 29. Rfd1 {[%clk 0:00:48.4]}
29... Rxd1+ {[%clk 0:01:16.9]} 30. Rxd1 {[%clk 0:00:49.3]} 30... Be6 {[%clk
0:01:17.2]} 31. Qa5 {[%clk 0:00:43.3]} 31... Qf7 {[%clk 0:01:10.2]} 32. Qxa6
{[%clk 0:00:41.1]} 32... Bh4 {[%clk 0:01:05.6]} 33. b4 {[%clk 0:00:34]} 33...
Bxd5 {[%clk 0:01:00.8]} 34. Rxd5 {[%clk 0:00:34.9]} 34... Rb8 {[%clk 0:01:00.6]}
35. Qa4 {[%clk 0:00:24.6]} 35... Qe8 {[%clk 0:00:46.2]} 36. Kf1 {[%clk
0:00:22.8]} 36... Rb6 {[%clk 0:00:38.8]} 37. b5 {[%clk 0:00:21.9]} 37... Rb8
{[%clk 0:00:25.5]} 38. Rd1 {[%clk 0:00:21.6]} 38... Ra8 {[%clk 0:00:24.6]} 39.
Qc4 {[%clk 0:00:20.1]} 39... Qb8 {[%clk 0:00:24.1]} 40. Kg1 {[%clk 0:00:20]}
40... Bg3 {[%clk 0:00:21.2]} 41. Kh1 {[%clk 0:00:19.9]} 41... Qg8 {[%clk
0:00:17.4]} 42. Qxg8+ {[%clk 0:00:17.2]} 42... Kxg8 {[%clk 0:00:18.3]} 43. b6
{[%clk 0:00:17.7]} 43... cxb6 {[%clk 0:00:18.1]} 44. c7 {[%clk 0:00:16]} 44...
Rc8 {[%clk 0:00:16.7]} 45. Rc1 {[%clk 0:00:15.9]} 45... Bf2 {[%clk 0:00:07.9]}
46. Rc6 {[%clk 0:00:16.4]} 46... Kf8 {[%clk 0:00:08.5]} 47. g5 {[%clk 0:00:16]}
1-0

[Event "Early-Titled-Tuesday-Blitz-January-23-2024"]
[Site "Chess.com"]
[Date "2024.01.23"]
[Round "11"]
[White "Crazy_girl99"]
[Black "Kotlyar_K"]
[Result "1-0"]
[WhiteElo "2601"]
[BlackElo "2495"]
[TimeControl "180+1"]
[EndTime "10:08:04 PST"]
[Termination "Crazy_girl99 won by resignation"]

1. e4 {[%clk 0:03:00]} 1... e5 {[%clk 0:02:54.8]} 2. Nf3 {[%clk 0:02:57.8]} 2...
Nc6 {[%clk 0:02:54.9]} 3. Bb5 {[%clk 0:02:58]} 3... a6 {[%clk 0:02:54.9]} 4. Ba4
{[%clk 0:02:58.2]} 4... Nf6 {[%clk 0:02:54.9]} 5. O-O {[%clk 0:02:58.5]} 5...
Be7 {[%clk 0:02:53]} 6. Re1 {[%clk 0:02:57.8]} 6... b5 {[%clk 0:02:53.3]} 7. Bb3
{[%clk 0:02:57.7]} 7... O-O {[%clk 0:02:54.2]} 8. a4 {[%clk 0:02:55.2]} 8... b4
{[%clk 0:02:53.9]} 9. d3 {[%clk 0:02:55.1]} 9... a5 {[%clk 0:02:42.4]} 10. Nbd2
{[%clk 0:02:54]} 10... d6 {[%clk 0:02:41]} 11. h3 {[%clk 0:02:53.8]} 11... Be6
{[%clk 0:02:37.8]} 12. Nc4 {[%clk 0:02:50.8]} 12... Nd7 {[%clk 0:02:34.3]} 13.
c3 {[%clk 0:02:50.2]} 13... Nc5 {[%clk 0:02:33.2]} 14. Bc2 {[%clk 0:02:44.4]}
14... Bxc4 {[%clk 0:02:28.5]} 15. dxc4 {[%clk 0:02:44.1]} 15... Rb8 {[%clk
0:02:26.6]} 16. Be3 {[%clk 0:02:37.7]} 16... b3 {[%clk 0:02:24]} 17. Bb1 {[%clk
0:02:37.7]} 17... Qc8 {[%clk 0:02:15.8]} 18. Nd2 {[%clk 0:02:26.1]} 18... Qb7
{[%clk 0:02:08.8]} 19. Ra3 {[%clk 0:02:22.8]} 19... Ne6 {[%clk 0:01:59.2]} 20.
Rxb3 {[%clk 0:02:19.7]} 20... Qa6 {[%clk 0:01:59.1]} 21. Rxb8 {[%clk 0:02:19.3]}
21... Rxb8 {[%clk 0:01:59.9]} 22. b3 {[%clk 0:02:19.9]} 22... Nc5 {[%clk
0:01:50.9]} 23. Bc2 {[%clk 0:02:19.7]} 23... Qc8 {[%clk 0:01:45.6]} 24. Qf3
{[%clk 0:02:17.8]} 24... Bf6 {[%clk 0:01:33.1]} 25. Rd1 {[%clk 0:02:15.7]} 25...
Ne7 {[%clk 0:01:31.7]} 26. Bxc5 {[%clk 0:02:14.4]} 26... dxc5 {[%clk 0:01:31.9]}
27. Nf1 {[%clk 0:02:15.1]} 27... Qe6 {[%clk 0:01:27.8]} 28. Ne3 {[%clk
0:02:13.8]} 28... g6 {[%clk 0:01:26.4]} 29. Nd5 {[%clk 0:02:13.4]} 29... Bg7
{[%clk 0:01:02.2]} 30. Nxc7 {[%clk 0:02:09.3]} 30... Qc8 {[%clk 0:01:00.8]} 31.
Nb5 {[%clk 0:02:04.1]} 31... Nc6 {[%clk 0:00:51]} 32. Rd6 {[%clk 0:02:01.7]}
32... Bf8 {[%clk 0:00:44.2]} 33. Rd5 {[%clk 0:01:55.5]} 33... Qe6 {[%clk
0:00:34.4]} 34. Bd1 {[%clk 0:01:51.4]} 34... Rd8 {[%clk 0:00:32]} 35. Qd3 {[%clk
0:01:47.4]} 35... Qc8 {[%clk 0:00:27.7]} 36. Bg4 {[%clk 0:01:46]} 36... Qb8
{[%clk 0:00:25.8]} 37. Rxd8 {[%clk 0:01:33]} 37... Nxd8 {[%clk 0:00:26.7]} 38.
Qd7 {[%clk 0:01:29.2]} 38... Nb7 {[%clk 0:00:19]} 39. Nc7 {[%clk 0:01:22.7]}
39... Nd6 {[%clk 0:00:17.9]} 40. Nd5 {[%clk 0:01:21.3]} 40... Qxb3 {[%clk
0:00:17.3]} 41. Qd8 {[%clk 0:00:52.5]} 41... Kg7 {[%clk 0:00:13.5]} 42. Qf6+
{[%clk 0:00:47.4]} 42... Kg8 {[%clk 0:00:13.9]} 43. Qxe5 {[%clk 0:00:47.6]}
43... Qxc4 {[%clk 0:00:12.6]} 44. Nf6+ {[%clk 0:00:47.5]} 44... Kh8 {[%clk
0:00:13.1]} 45. Ne8+ {[%clk 0:00:43]} 45... Kg8 {[%clk 0:00:13.5]} 46. Nxd6
{[%clk 0:00:42.3]} 46... Bxd6 {[%clk 0:00:12.3]} 47. Qxd6 {[%clk 0:00:42.6]}
47... Qxc3 {[%clk 0:00:12.7]} 48. e5 {[%clk 0:00:39.8]} 48... Qa1+ {[%clk
0:00:12.7]} 49. Kh2 {[%clk 0:00:37.6]} 49... Qxa4 {[%clk 0:00:13.6]} 50. e6
{[%clk 0:00:36.6]} 50... Qe8 {[%clk 0:00:11.7]} 51. e7 {[%clk 0:00:34.7]} 51...
Kg7 {[%clk 0:00:10.8]} 52. Qd8 {[%clk 0:00:32.3]} 52... Qa4 {[%clk 0:00:10.9]}
53. e8=Q {[%clk 0:00:31.1]} 53... Qf4+ {[%clk 0:00:11.1]} 54. Kg1 {[%clk
0:00:31.2]} 54... Qc1+ {[%clk 0:00:11.3]} 55. Bd1 {[%clk 0:00:30.8]} 55... Qf4
{[%clk 0:00:11.1]} 56. Qd5 {[%clk 0:00:28.8]} 56... a4 {[%clk 0:00:10.6]} 57.
Qee5+ {[%clk 0:00:28.9]} 57... Qxe5 {[%clk 0:00:10.5]} 58. Qxe5+ {[%clk
0:00:29.8]} 1-0